[Event "Titled Tuesday Blitz February 01 B 2022"]
[White "Przybylski, Wojciech"]
[Black "Muradli, Mahammad"]
[WhiteFideId "1117599"]
[BlackFideId "13409301"]
[WhiteElo "2133"]
[BlackElo "2645"]
[Result "1-0"]
[Round "01"]
[TimeControl "180+1"]
[Date "2022.02.01"]
[WhiteClock "0:00:09"]
[BlackClock "0:00:02"]

1. e4 {[%clk 0:03:00]}  c5 {[%clk 0:02:50]} 2. Nf3 {[%clk 0:02:59]}  d6 {[%clk 0:02:51]} 3. d4 {[%clk 0:02:58]}  cxd4 {[%clk 0:02:52]} 4. Nxd4 {[%clk 0:02:58]}  e6 {[%clk 0:02:52]} 5. Be2 {[%clk 0:02:55]}  Nf6 {[%clk 0:02:52]} 6. Nc3 {[%clk 0:02:54]}  Nc6 {[%clk 0:02:52]} 7. O-O {[%clk 0:02:52]}  Bd7 {[%clk 0:02:52]} 8. Be3 {[%clk 0:02:49]}  Be7 {[%clk 0:02:52]} 9. f4 {[%clk 0:02:46]}  O-O {[%clk 0:02:51]} 10. Kh1 {[%clk 0:02:45]}  a6 {[%clk 0:02:51]} 11. a4 {[%clk 0:02:43]}  Nxd4 {[%clk 0:02:51]} 12. Bxd4 {[%clk 0:02:40]}  Bc6 {[%clk 0:02:52]} 13. Bd3 {[%clk 0:02:39]}  Qa5 {[%clk 0:02:40]} 14. e5 {[%clk 0:02:27]}  dxe5 {[%clk 0:02:41]} 15. fxe5 {[%clk 0:02:26]}  Nd5 {[%clk 0:02:37]} 16. Ne4 {[%clk 0:02:20]}  Rfd8 {[%clk 0:02:30]} 17. Qg4 {[%clk 0:01:49]}  Be8 {[%clk 0:02:14]} 18. Rf3 {[%clk 0:01:34]}  Rac8 {[%clk 0:02:04]} 19. c3 {[%clk 0:01:31]}  Qc7 {[%clk 0:01:46]} 20. Raf1 {[%clk 0:01:29]}  b5 {[%clk 0:01:36]} 21. axb5 {[%clk 0:01:27]}  axb5 {[%clk 0:01:37]} 22. Bxb5 {[%clk 0:01:20]}  Bf8 {[%clk 0:00:48]} 23. Bxe8 {[%clk 0:01:10]}  Rxe8 {[%clk 0:00:49]} 24. Ng5 {[%clk 0:01:09]}  Ne7 {[%clk 0:00:19]} 25. Rxf7 {[%clk 0:01:01]}  Qc6 {[%clk 0:00:19]} 26. Nxe6 {[%clk 0:00:43]}  Ng6 {[%clk 0:00:18]} 27. Ng5 {[%clk 0:00:33]}  Qc4 {[%clk 0:00:12]} 28. Qh5 {[%clk 0:00:30]}  h6 {[%clk 0:00:07]} 29. Ne4 {[%clk 0:00:22]}  Re6 {[%clk 0:00:05]} 30. Qf5 {[%clk 0:00:17]}  Rce8 {[%clk 0:00:03]} 31. Ra7 {[%clk 0:00:16]}  Qe2 {[%clk 0:00:02]} 32. h3 {[%clk 0:00:15]}  Kh8 {[%clk 0:00:02]} 33. Rf2 {[%clk 0:00:13]}  Qe1+ {[%clk 0:00:02]} 34. Rf1 {[%clk 0:00:13]}  Qe2 {[%clk 0:00:02]} 35. Kh2 {[%clk 0:00:12]}  Nh4 {[%clk 0:00:03]} 36. Rf2 {[%clk 0:00:11]}  Nxf5 {[%clk 0:00:02]} 37. Rxe2 {[%clk 0:00:12]}  Rc6 {[%clk 0:00:02]} 38. Ng3 {[%clk 0:00:10]}  Nh4 {[%clk 0:00:02]} 39. Nh5 {[%clk 0:00:10]}  Ng6 {[%clk 0:00:02]} 40. Ra5 {[%clk 0:00:07]}  Rce6 {[%clk 0:00:01]} 41. g3 {[%clk 0:00:07]}  Kh7 {[%clk 0:00:02]} 42. Nf4 {[%clk 0:00:07]}  Nxf4 {[%clk 0:00:02]} 43. gxf4 {[%clk 0:00:07]}  Kg6 {[%clk 0:00:03]} 44. Kg3 {[%clk 0:00:07]}  Kf5 {[%clk 0:00:04]} 45. Kf3 {[%clk 0:00:07]}  Be7 {[%clk 0:00:04]} 46. Rg2 {[%clk 0:00:06]}  g6 {[%clk 0:00:05]} 47. Rd5 {[%clk 0:00:06]}  Rb8 {[%clk 0:00:05]} 48. b4 {[%clk 0:00:06]}  Rc8 {[%clk 0:00:04]} 49. Rd7 {[%clk 0:00:06]}  Ra8 {[%clk 0:00:04]} 50. h4 {[%clk 0:00:05]}  h5 {[%clk 0:00:02]} 51. b5 {[%clk 0:00:06]}  Rb8 {[%clk 0:00:02]} 52. b6 {[%clk 0:00:05]}  Rd8 {[%clk 0:00:02]} 53. Rxd8 {[%clk 0:00:04]}  Bxd8 {[%clk 0:00:03]} 54. b7 {[%clk 0:00:04]}  Bc7 {[%clk 0:00:04]} 55. Ra2 {[%clk 0:00:04]}  Re8 {[%clk 0:00:01]} 56. Ra8 {[%clk 0:00:04]}  Re7 {[%clk 0:00:01]} 57. Rc8 {[%clk 0:00:03]}  Bb8 {[%clk 0:00:01]} 58. Rxb8 {[%clk 0:00:03]}  Ke6 {[%clk 0:00:02]} 59. Rd8 {[%clk 0:00:03]}  Rxb7 {[%clk 0:00:02]} 60. Rd6+ {[%clk 0:00:04]}  Kf7 {[%clk 0:00:02]} 61. Rc6 {[%clk 0:00:05]}  Rb1 {[%clk 0:00:02]} 62. Ke4 {[%clk 0:00:05]}  Re1+ {[%clk 0:00:02]} 63. Kd5 {[%clk 0:00:06]}  Rh1 {[%clk 0:00:03]} 64. Rc7+ {[%clk 0:00:06]}  Ke8 {[%clk 0:00:03]} 65. Rc8+ {[%clk 0:00:07]}  Kd7 {[%clk 0:00:03]} 66. Rg8 {[%clk 0:00:08]}  Rxh4 {[%clk 0:00:03]} 67. Rg7+ {[%clk 0:00:08]}  Ke8 {[%clk 0:00:03]} 68. Rxg6 {[%clk 0:00:09]}  Rg4 {[%clk 0:00:04]} 69. Rh6 {[%clk 0:00:09]}  h4 {[%clk 0:00:04]} 70. f5 {[%clk 0:00:09]}  h3 {[%clk 0:00:05]} 71. Ke6 {[%clk 0:00:09]}  Rg8 {[%clk 0:00:04]} 72. f6 {[%clk 0:00:09]}  Kf8 {[%clk 0:00:04]} 73. Rxh3 {[%clk 0:00:09]}  Ke8 {[%clk 0:00:02]} 74. f7+ {[%clk 0:00:09]} 1-0


[Site "https://www.chess.com"]

[Event "Titled Tuesday Blitz February 01 B 2022"]
[White "Sarana, Alexey"]
[Black "Vusatiuk, Vladimir"]
[WhiteFideId "24133795"]
[BlackFideId "14118610"]
[WhiteElo "2665"]
[BlackElo "2157"]
[Result "1-0"]
[Round "01"]
[TimeControl "180+1"]
[Date "2022.02.01"]
[WhiteClock "0:02:45"]
[BlackClock "0:00:09"]

1. d4 {[%clk 0:03:00]}  Nf6 {[%clk 0:02:59]} 2. c4 {[%clk 0:03:00]}  e6 {[%clk 0:02:59]} 3. Nc3 {[%clk 0:03:00]}  Bb4 {[%clk 0:02:59]} 4. e3 {[%clk 0:03:01]}  O-O {[%clk 0:02:59]} 5. Bd3 {[%clk 0:03:01]}  d5 {[%clk 0:02:57]} 6. a3 {[%clk 0:03:01]}  Bxc3+ {[%clk 0:02:55]} 7. bxc3 {[%clk 0:03:02]}  b6 {[%clk 0:02:49]} 8. cxd5 {[%clk 0:03:01]}  exd5 {[%clk 0:02:50]} 9. Ne2 {[%clk 0:03:01]}  Ba6 {[%clk 0:02:45]} 10. f3 {[%clk 0:03:02]}  c5 {[%clk 0:02:42]} 11. O-O {[%clk 0:03:02]}  Re8 {[%clk 0:02:37]} 12. Ng3 {[%clk 0:03:01]}  Bxd3 {[%clk 0:02:32]} 13. Qxd3 {[%clk 0:03:02]}  Nc6 {[%clk 0:02:32]} 14. Bb2 {[%clk 0:03:01]}  h5 {[%clk 0:02:28]} 15. e4 {[%clk 0:03:00]}  h4 {[%clk 0:02:11]} 16. Nf5 {[%clk 0:02:59]}  dxe4 {[%clk 0:02:10]} 17. fxe4 {[%clk 0:03:00]}  Rxe4 {[%clk 0:02:09]} 18. Nxg7 {[%clk 0:03:00]}  Ne5 {[%clk 0:01:16]} 19. Qh3 {[%clk 0:02:58]}  Nc4 {[%clk 0:00:56]} 20. Bc1 {[%clk 0:02:57]}  Kxg7 {[%clk 0:00:51]} 21. Bg5 {[%clk 0:02:57]}  Qc8 {[%clk 0:00:37]} 22. Bxf6+ {[%clk 0:02:55]}  Kg6 {[%clk 0:00:32]} 23. Qd3 {[%clk 0:02:55]}  Nd6 {[%clk 0:00:32]} 24. Be5 {[%clk 0:02:53]}  c4 {[%clk 0:00:31]} 25. Qc2 {[%clk 0:02:53]}  Qg4 {[%clk 0:00:24]} 26. Bxd6 {[%clk 0:02:52]}  f5 {[%clk 0:00:19]} 27. Rf2 {[%clk 0:02:48]}  h3 {[%clk 0:00:18]} 28. Raf1 {[%clk 0:02:46]}  Rae8 {[%clk 0:00:17]} 29. Be5 {[%clk 0:02:46]}  Kh7 {[%clk 0:00:12]} 30. Rxf5 {[%clk 0:02:45]}  Re2 {[%clk 0:00:10]} 31. Rf7+ {[%clk 0:02:45]}  Kh6 {[%clk 0:00:08]} 32. Qh7+ {[%clk 0:02:45]}  Kg5 {[%clk 0:00:09]} 33. R1f5+ {[%clk 0:02:45]} 1-0


[Site "https://www.chess.com"]

[Event "Titled Tuesday Blitz February 01 B 2022"]
[White "Sjugirov, Sanan"]
[Black "Domingo Nunez, Alejandro"]
[WhiteFideId "4189302"]
[BlackFideId "22245561"]
[WhiteElo "2602"]
[BlackElo "2215"]
[Result "1-0"]
[Round "01"]
[TimeControl "180+1"]
[Date "2022.02.01"]
[WhiteClock "0:00:16"]
[BlackClock "0:00:04"]

1. d4 {[%clk 0:03:00]}  g6 {[%clk 0:02:58]} 2. e4 {[%clk 0:03:00]}  Bg7 {[%clk 0:02:59]} 3. Nf3 {[%clk 0:03:01]}  c6 {[%clk 0:02:59]} 4. Bd3 {[%clk 0:03:01]}  d5 {[%clk 0:03:00]} 5. e5 {[%clk 0:03:02]}  f6 {[%clk 0:03:01]} 6. exf6 {[%clk 0:02:59]}  exf6 {[%clk 0:02:58]} 7. O-O {[%clk 0:02:59]}  Ne7 {[%clk 0:02:59]} 8. h3 {[%clk 0:02:55]}  O-O {[%clk 0:02:59]} 9. Re1 {[%clk 0:02:52]}  Bf5 {[%clk 0:02:58]} 10. Bxf5 {[%clk 0:02:37]}  Nxf5 {[%clk 0:02:59]} 11. Qd3 {[%clk 0:02:35]}  Nd6 {[%clk 0:02:59]} 12. Bf4 {[%clk 0:02:31]}  Na6 {[%clk 0:02:50]} 13. Nbd2 {[%clk 0:02:28]}  Qd7 {[%clk 0:02:43]} 14. Qb3 {[%clk 0:02:19]}  Nc7 {[%clk 0:02:30]} 15. Qb4 {[%clk 0:02:06]}  Rfd8 {[%clk 0:02:26]} 16. Re2 {[%clk 0:02:01]}  Bf8 {[%clk 0:02:25]} 17. Qb3 {[%clk 0:02:00]}  b5 {[%clk 0:02:20]} 18. Rae1 {[%clk 0:01:59]}  Re8 {[%clk 0:02:18]} 19. Qd3 {[%clk 0:01:46]}  Rxe2 {[%clk 0:02:09]} 20. Rxe2 {[%clk 0:01:47]}  Re8 {[%clk 0:02:09]} 21. Rxe8 {[%clk 0:01:47]}  Qxe8 {[%clk 0:02:07]} 22. Kf1 {[%clk 0:01:42]}  Ne6 {[%clk 0:01:58]} 23. Bh2 {[%clk 0:01:41]}  Ng7 {[%clk 0:01:50]} 24. b3 {[%clk 0:01:34]}  Ne4 {[%clk 0:01:48]} 25. c4 {[%clk 0:01:21]}  bxc4 {[%clk 0:01:42]} 26. bxc4 {[%clk 0:01:22]}  Bb4 {[%clk 0:01:42]} 27. Nb3 {[%clk 0:01:13]}  Nf5 {[%clk 0:01:34]} 28. c5 {[%clk 0:01:08]}  a5 {[%clk 0:00:59]} 29. g4 {[%clk 0:01:07]}  Ng7 {[%clk 0:00:42]} 30. Nc1 {[%clk 0:01:05]}  a4 {[%clk 0:00:20]} 31. Ne2 {[%clk 0:00:58]}  Ne6 {[%clk 0:00:10]} 32. Qa6 {[%clk 0:00:44]}  a3 {[%clk 0:00:09]} 33. Qa4 {[%clk 0:00:41]}  Nd2+ {[%clk 0:00:04]} 34. Nxd2 {[%clk 0:00:38]}  Bxd2 {[%clk 0:00:05]} 35. Qxa3 {[%clk 0:00:36]}  Ng5 {[%clk 0:00:06]} 36. Qd3 {[%clk 0:00:28]}  Ba5 {[%clk 0:00:06]} 37. h4 {[%clk 0:00:24]}  Ne4 {[%clk 0:00:06]} 38. f3 {[%clk 0:00:24]}  Nd2+ {[%clk 0:00:07]} 39. Kf2 {[%clk 0:00:24]}  Nc4 {[%clk 0:00:07]} 40. Bf4 {[%clk 0:00:18]}  Kg7 {[%clk 0:00:04]} 41. Qb3 {[%clk 0:00:16]} 1-0


[Site "https://www.chess.com"]

[Event "Titled Tuesday Blitz February 01 B 2022"]
[White "Villegas, Pierre"]
[Black "Naroditsky, Daniel"]
[WhiteFideId "654183"]
[BlackFideId "2026961"]
[WhiteElo "2410"]
[BlackElo "2608"]
[Result "0-1"]
[Round "01"]
[TimeControl "180+1"]
[Date "2022.02.01"]
[WhiteClock "0:00:35"]
[BlackClock "0:00:33"]

1. d4 {[%clk 0:02:57]}  Nf6 {[%clk 0:02:59]} 2. c4 {[%clk 0:02:56]}  g6 {[%clk 0:02:39]} 3. Nc3 {[%clk 0:02:53]}  Bg7 {[%clk 0:02:39]} 4. e4 {[%clk 0:02:53]}  d6 {[%clk 0:02:38]} 5. Nge2 {[%clk 0:02:53]}  O-O {[%clk 0:02:38]} 6. Ng3 {[%clk 0:02:53]}  a6 {[%clk 0:02:38]} 7. Be2 {[%clk 0:02:51]}  c6 {[%clk 0:02:29]} 8. O-O {[%clk 0:02:49]}  b5 {[%clk 0:02:30]} 9. f4 {[%clk 0:02:50]}  Bb7 {[%clk 0:02:26]} 10. e5 {[%clk 0:02:33]}  Nfd7 {[%clk 0:02:26]} 11. Nce4 {[%clk 0:02:12]}  c5 {[%clk 0:02:07]} 12. dxc5 {[%clk 0:01:58]}  dxe5 {[%clk 0:02:00]} 13. f5 {[%clk 0:01:57]}  Nc6 {[%clk 0:02:00]} 14. cxb5 {[%clk 0:01:53]}  axb5 {[%clk 0:02:00]} 15. Bxb5 {[%clk 0:01:39]}  Nd4 {[%clk 0:01:56]} 16. Bd3 {[%clk 0:01:39]}  Qc7 {[%clk 0:01:19]} 17. b4 {[%clk 0:01:36]}  Bd5 {[%clk 0:01:19]} 18. a3 {[%clk 0:01:25]}  Rad8 {[%clk 0:01:15]} 19. Be3 {[%clk 0:01:21]}  Nf6 {[%clk 0:01:10]} 20. Bxd4 {[%clk 0:01:16]}  exd4 {[%clk 0:01:09]} 21. Nxf6+ {[%clk 0:01:14]}  Bxf6 {[%clk 0:01:10]} 22. fxg6 {[%clk 0:01:11]}  hxg6 {[%clk 0:01:09]} 23. Qc2 {[%clk 0:01:09]}  Be5 {[%clk 0:01:07]} 24. Bxg6 {[%clk 0:00:54]}  fxg6 {[%clk 0:00:44]} 25. Qxg6+ {[%clk 0:00:55]}  Bg7 {[%clk 0:00:45]} 26. Nh5 {[%clk 0:00:44]}  Qe5 {[%clk 0:00:32]} 27. Rfe1 {[%clk 0:00:37]}  Bf7 {[%clk 0:00:32]} 28. Qxg7+ {[%clk 0:00:34]}  Qxg7 {[%clk 0:00:32]} 29. Nxg7 {[%clk 0:00:35]}  Kxg7 {[%clk 0:00:33]} 30. Rxe7 {[%clk 0:00:35]}  d3 {[%clk 0:00:33]} 0-1


[Site "https://www.chess.com"]

[Event "Titled Tuesday Blitz February 01 B 2022"]
[White "Willow, Jonah B"]
[Black "Tanenbaum, Zachary"]
[WhiteFideId "438804"]
[BlackFideId "2060850"]
[WhiteElo "2261"]
[BlackElo "2168"]
[Result "1-0"]
[Round "01"]
[TimeControl "180+1"]
[Date "2022.02.01"]
[WhiteClock "0:00:32"]
[BlackClock "0:00:04"]

1. e4 {[%clk 0:03:00]}  e5 {[%clk 0:03:00]} 2. Nf3 {[%clk 0:03:00]}  Nc6 {[%clk 0:03:01]} 3. Nc3 {[%clk 0:03:01]}  Nf6 {[%clk 0:03:01]} 4. Bb5 {[%clk 0:03:01]}  Bd6 {[%clk 0:03:01]} 5. d3 {[%clk 0:03:01]}  O-O {[%clk 0:03:00]} 6. a3 {[%clk 0:02:58]}  a6 {[%clk 0:03:00]} 7. Ba4 {[%clk 0:02:57]}  b5 {[%clk 0:02:59]} 8. Bb3 {[%clk 0:02:57]}  Be7 {[%clk 0:02:58]} 9. g4 {[%clk 0:02:48]}  h6 {[%clk 0:02:32]} 10. Rg1 {[%clk 0:02:46]}  d6 {[%clk 0:02:25]} 11. g5 {[%clk 0:02:42]}  hxg5 {[%clk 0:02:26]} 12. Bxg5 {[%clk 0:02:42]}  Nh5 {[%clk 0:02:22]} 13. Bxe7 {[%clk 0:02:32]}  Nxe7 {[%clk 0:02:05]} 14. Nxe5 {[%clk 0:02:23]}  Nf4 {[%clk 0:01:57]} 15. Nxf7 {[%clk 0:02:18]}  Rxf7 {[%clk 0:01:57]} 16. Bxf7+ {[%clk 0:02:18]}  Kxf7 {[%clk 0:01:57]} 17. Qf3 {[%clk 0:02:18]}  Ng6 {[%clk 0:01:47]} 18. Rxg6 {[%clk 0:01:54]}  Kxg6 {[%clk 0:01:48]} 19. Qxf4 {[%clk 0:01:55]}  Be6 {[%clk 0:01:45]} 20. O-O-O {[%clk 0:01:54]}  Qe7 {[%clk 0:01:33]} 21. Rg1+ {[%clk 0:01:51]}  Kh7 {[%clk 0:01:33]} 22. Qg3 {[%clk 0:01:47]}  Rf8 {[%clk 0:01:30]} 23. f4 {[%clk 0:01:46]}  Qf6 {[%clk 0:01:17]} 24. f5 {[%clk 0:01:42]}  Bf7 {[%clk 0:01:17]} 25. Kb1 {[%clk 0:01:32]}  a5 {[%clk 0:01:14]} 26. Qh3+ {[%clk 0:01:18]}  Kg8 {[%clk 0:01:14]} 27. Rg4 {[%clk 0:01:16]}  Qd4 {[%clk 0:01:00]} 28. Ne2 {[%clk 0:00:54]}  Qf2 {[%clk 0:00:59]} 29. Rh4 {[%clk 0:00:44]}  Be8 {[%clk 0:00:22]} 30. Rh8+ {[%clk 0:00:44]}  Kf7 {[%clk 0:00:22]} 31. Qh5+ {[%clk 0:00:43]}  Ke7 {[%clk 0:00:23]} 32. Qg5+ {[%clk 0:00:43]}  Rf6 {[%clk 0:00:20]} 33. Qxg7+ {[%clk 0:00:41]}  Bf7 {[%clk 0:00:15]} 34. Qf8+ {[%clk 0:00:37]}  Kd7 {[%clk 0:00:16]} 35. Qd8+ {[%clk 0:00:38]}  Kc6 {[%clk 0:00:15]} 36. Qxf6 {[%clk 0:00:35]}  Qxe2 {[%clk 0:00:06]} 37. Qxf7 {[%clk 0:00:31]}  Qd1+ {[%clk 0:00:07]} 38. Ka2 {[%clk 0:00:32]}  Qxc2 {[%clk 0:00:07]} 39. Qd5+ {[%clk 0:00:32]}  Kd7 {[%clk 0:00:05]} 40. Rh7+ {[%clk 0:00:32]}  Kd8 {[%clk 0:00:04]} 41. Qg8# {[%clk 0:00:32]} 1-0


[Site "https://www.chess.com"]

[Event "Titled Tuesday Blitz February 01 B 2022"]
[White "Yedidia, Daniel"]
[Black "Drygalov, Andrey"]
[WhiteFideId "30905907"]
[BlackFideId "24171735"]
[WhiteElo "2469"]
[BlackElo "2540"]
[Result "0-1"]
[Round "01"]
[TimeControl "180+1"]
[Date "2022.02.01"]
[WhiteClock "0:00:01"]
[BlackClock "0:00:18"]

1. d4 {[%clk 0:02:59]}  Nf6 {[%clk 0:02:58]} 2. c4 {[%clk 0:02:57]}  e6 {[%clk 0:02:58]} 3. Nc3 {[%clk 0:02:56]}  Bb4 {[%clk 0:02:59]} 4. e3 {[%clk 0:02:56]}  d5 {[%clk 0:02:59]} 5. Bd3 {[%clk 0:02:55]}  O-O {[%clk 0:02:58]} 6. Nf3 {[%clk 0:02:55]}  c5 {[%clk 0:02:59]} 7. O-O {[%clk 0:02:55]}  cxd4 {[%clk 0:02:59]} 8. exd4 {[%clk 0:02:56]}  Nc6 {[%clk 0:02:59]} 9. Bg5 {[%clk 0:02:53]}  dxc4 {[%clk 0:02:59]} 10. Bxc4 {[%clk 0:02:53]}  h6 {[%clk 0:02:59]} 11. Bh4 {[%clk 0:02:53]}  b6 {[%clk 0:02:59]} 12. Rc1 {[%clk 0:02:50]}  Bb7 {[%clk 0:02:59]} 13. Bb3 {[%clk 0:02:38]}  Be7 {[%clk 0:02:52]} 14. Re1 {[%clk 0:02:19]}  Nb4 {[%clk 0:02:47]} 15. Ne5 {[%clk 0:02:07]}  Nbd5 {[%clk 0:02:43]} 16. Nxd5 {[%clk 0:02:00]}  Nxd5 {[%clk 0:02:43]} 17. Bxe7 {[%clk 0:01:54]}  Nxe7 {[%clk 0:02:44]} 18. Qg4 {[%clk 0:01:34]}  Nf5 {[%clk 0:02:42]} 19. Nxf7 {[%clk 0:01:28]}  Rxf7 {[%clk 0:02:28]} 20. Bxe6 {[%clk 0:01:26]}  Qf6 {[%clk 0:01:50]} 21. Rc7 {[%clk 0:00:58]}  Qxe6 {[%clk 0:01:49]} 22. Rxe6 {[%clk 0:00:57]}  Rxc7 {[%clk 0:01:50]} 23. h3 {[%clk 0:00:52]}  Rf8 {[%clk 0:01:44]} 24. Re5 {[%clk 0:00:43]}  Rcf7 {[%clk 0:01:44]} 25. d5 {[%clk 0:00:38]}  Rf6 {[%clk 0:01:27]} 26. Qc4 {[%clk 0:00:29]}  Nd6 {[%clk 0:01:26]} 27. Qc7 {[%clk 0:00:28]}  R8f7 {[%clk 0:01:17]} 28. Re7 {[%clk 0:00:12]}  Rxe7 {[%clk 0:01:17]} 29. Qxe7 {[%clk 0:00:13]}  Bxd5 {[%clk 0:01:17]} 30. b3 {[%clk 0:00:11]}  Kh7 {[%clk 0:01:14]} 31. Qxa7 {[%clk 0:00:10]}  Ne4 {[%clk 0:01:14]} 32. f3 {[%clk 0:00:10]}  Nc3 {[%clk 0:01:11]} 33. Qa3 {[%clk 0:00:01]}  Ne2+ {[%clk 0:01:11]} 34. Kf2 {[%clk 0:00:02]}  Nf4 {[%clk 0:01:11]} 35. Kg1 {[%clk 0:00:01]}  Re6 {[%clk 0:01:10]} 36. Qb4 {[%clk 0:00:01]}  g5 {[%clk 0:01:02]} 37. Qd2 {[%clk 0:00:01]}  Re2 {[%clk 0:01:01]} 38. Qb4 {[%clk 0:00:01]}  Rxg2+ {[%clk 0:01:01]} 39. Kf1 {[%clk 0:00:02]}  Bxf3 {[%clk 0:00:56]} 40. Qxb6 {[%clk 0:00:03]}  Re2 {[%clk 0:00:48]} 41. Qc7+ {[%clk 0:00:03]}  Kg6 {[%clk 0:00:47]} 42. Qd6+ {[%clk 0:00:02]}  Kh5 {[%clk 0:00:47]} 43. Qf6 {[%clk 0:00:01]}  Bg2+ {[%clk 0:00:43]} 44. Kg1 {[%clk 0:00:02]}  Nxh3+ {[%clk 0:00:43]} 45. Kh2 {[%clk 0:00:03]}  Be4+ {[%clk 0:00:43]} 46. Kxh3 {[%clk 0:00:02]}  g4+ {[%clk 0:00:43]} 47. Kg3 {[%clk 0:00:03]}  Rg2+ {[%clk 0:00:44]} 48. Kf4 {[%clk 0:00:03]}  Re2 {[%clk 0:00:45]} 49. Ke5 {[%clk 0:00:04]}  Bg6+ {[%clk 0:00:38]} 50. Kd4 {[%clk 0:00:03]}  Re4+ {[%clk 0:00:35]} 51. Kd5 {[%clk 0:00:03]}  g3 {[%clk 0:00:36]} 52. Qf3+ {[%clk 0:00:03]}  Rg4 {[%clk 0:00:37]} 53. Qg2 {[%clk 0:00:03]}  Kg5 {[%clk 0:00:37]} 54. Ke5 {[%clk 0:00:02]}  Re4+ {[%clk 0:00:36]} 55. Kd5 {[%clk 0:00:03]}  Re3 {[%clk 0:00:37]} 56. Kd4 {[%clk 0:00:03]}  Rd3+ {[%clk 0:00:33]} 57. Kc4 {[%clk 0:00:03]}  h5 {[%clk 0:00:33]} 58. a4 {[%clk 0:00:03]}  h4 {[%clk 0:00:33]} 59. a5 {[%clk 0:00:03]}  Kg4 {[%clk 0:00:29]} 60. a6 {[%clk 0:00:03]}  h3 {[%clk 0:00:28]} 61. Qe2+ {[%clk 0:00:04]}  Rf3 {[%clk 0:00:22]} 62. a7 {[%clk 0:00:04]}  h2 {[%clk 0:00:22]} 63. Qxf3+ {[%clk 0:00:04]}  Kxf3 {[%clk 0:00:21]} 64. a8=Q+ {[%clk 0:00:04]}  Be4 {[%clk 0:00:20]} 65. Qf8+ {[%clk 0:00:03]}  Ke2 {[%clk 0:00:20]} 66. Qh6 {[%clk 0:00:01]}  h1=Q {[%clk 0:00:19]} 67. Qf4 {[%clk 0:00:02]}  Qf3 {[%clk 0:00:19]} 68. Qd6 {[%clk 0:00:01]}  g2 {[%clk 0:00:18]} 0-1


[Site "https://www.chess.com"]

[Event "Titled Tuesday Blitz February 01 B 2022"]
[White "Al Hosani, Omran"]
[Black "Nesterov, Arseniy"]
[WhiteFideId "9308733"]
[BlackFideId "24198455"]
[WhiteElo "2246"]
[BlackElo "2489"]
[Result "0-1"]
[Round "02"]
[TimeControl "180+1"]
[Date "2022.02.01"]
[WhiteClock "0:01:13"]
[BlackClock "0:00:43"]

1. d4 {[%clk 0:02:59]}  d5 {[%clk 0:02:59]} 2. c4 {[%clk 0:02:59]}  e6 {[%clk 0:02:59]} 3. Nf3 {[%clk 0:03:00]}  Nf6 {[%clk 0:02:58]} 4. g3 {[%clk 0:03:00]}  a6 {[%clk 0:02:58]} 5. Bg2 {[%clk 0:03:00]}  dxc4 {[%clk 0:02:59]} 6. O-O {[%clk 0:03:00]}  Nc6 {[%clk 0:02:59]} 7. Qc2 {[%clk 0:02:58]}  b5 {[%clk 0:02:51]} 8. a4 {[%clk 0:02:51]}  Bb7 {[%clk 0:02:33]} 9. axb5 {[%clk 0:02:48]}  axb5 {[%clk 0:02:34]} 10. Rxa8 {[%clk 0:02:48]}  Bxa8 {[%clk 0:02:35]} 11. b3 {[%clk 0:02:48]}  Nxd4 {[%clk 0:02:15]} 12. Nxd4 {[%clk 0:02:47]}  Bxg2 {[%clk 0:02:15]} 13. Nxe6 {[%clk 0:02:44]}  fxe6 {[%clk 0:02:14]} 14. Kxg2 {[%clk 0:02:44]}  cxb3 {[%clk 0:02:13]} 15. Qxb3 {[%clk 0:02:34]}  Qd5+ {[%clk 0:02:13]} 16. Qxd5 {[%clk 0:02:34]}  exd5 {[%clk 0:02:10]} 17. Bf4 {[%clk 0:02:33]}  Kd7 {[%clk 0:02:02]} 18. Rc1 {[%clk 0:02:32]}  Bd6 {[%clk 0:01:58]} 19. Be3 {[%clk 0:02:27]}  Ra8 {[%clk 0:01:48]} 20. Bd4 {[%clk 0:02:25]}  Ne8 {[%clk 0:01:29]} 21. e3 {[%clk 0:02:14]}  Rc8 {[%clk 0:01:16]} 22. Nd2 {[%clk 0:02:11]}  c5 {[%clk 0:01:15]} 23. Bb2 {[%clk 0:02:11]}  g6 {[%clk 0:01:13]} 24. h4 {[%clk 0:02:08]}  h5 {[%clk 0:01:05]} 25. f3 {[%clk 0:02:07]}  Nc7 {[%clk 0:01:03]} 26. g4 {[%clk 0:02:07]}  Ra8 {[%clk 0:01:01]} 27. Ra1 {[%clk 0:01:35]}  Rxa1 {[%clk 0:00:55]} 28. Bxa1 {[%clk 0:01:36]}  b4 {[%clk 0:00:52]} 29. e4 {[%clk 0:01:33]}  Bf4 {[%clk 0:00:48]} 30. Nb3 {[%clk 0:01:28]}  c4 {[%clk 0:00:48]} 31. Nd4 {[%clk 0:01:26]}  dxe4 {[%clk 0:00:44]} 32. gxh5 {[%clk 0:01:24]}  gxh5 {[%clk 0:00:45]} 33. fxe4 {[%clk 0:01:21]}  Be5 {[%clk 0:00:45]} 34. Kf3 {[%clk 0:01:20]}  Ne6 {[%clk 0:00:43]} 35. Nc2 {[%clk 0:01:20]}  Bxa1 {[%clk 0:00:41]} 36. Nxa1 {[%clk 0:01:20]}  b3 {[%clk 0:00:42]} 37. Nxb3 {[%clk 0:01:13]}  cxb3 {[%clk 0:00:43]} 0-1


[Site "https://www.chess.com"]

[Event "Titled Tuesday Blitz February 01 B 2022"]
[White "Andreikin, Dmitry"]
[Black "Balaji, Aaravamudhan"]
[WhiteFideId "4158814"]
[BlackFideId "436224"]
[WhiteElo "2736"]
[BlackElo "2085"]
[Result "1-0"]
[Round "02"]
[TimeControl "180+1"]
[Date "2022.02.01"]
[WhiteClock "0:02:35"]
[BlackClock "0:01:12"]

1. d4 {[%clk 0:03:00]}  Nf6 {[%clk 0:03:00]} 2. c4 {[%clk 0:03:00]}  b6 {[%clk 0:03:00]} 3. f3 {[%clk 0:02:57]}  e6 {[%clk 0:02:59]} 4. e4 {[%clk 0:02:57]}  d5 {[%clk 0:02:54]} 5. cxd5 {[%clk 0:02:55]}  exd5 {[%clk 0:02:55]} 6. e5 {[%clk 0:02:55]}  Nfd7 {[%clk 0:02:56]} 7. f4 {[%clk 0:02:53]}  Be7 {[%clk 0:02:55]} 8. Nf3 {[%clk 0:02:52]}  O-O {[%clk 0:02:55]} 9. Nc3 {[%clk 0:02:50]}  Bb7 {[%clk 0:02:55]} 10. Bd3 {[%clk 0:02:50]}  c5 {[%clk 0:02:55]} 11. h4 {[%clk 0:02:48]}  Nc6 {[%clk 0:02:53]} 12. Bxh7+ {[%clk 0:02:44]}  Kxh7 {[%clk 0:02:08]} 13. Ng5+ {[%clk 0:02:44]}  Kg6 {[%clk 0:01:26]} 14. f5+ {[%clk 0:02:36]}  Kxf5 {[%clk 0:01:13]} 15. Qd3+ {[%clk 0:02:35]}  Kg4 {[%clk 0:01:12]} 16. Qf3# {[%clk 0:02:35]} 1-0


[Site "https://www.chess.com"]